Workbook

Sheet Меню Завтрак ОВЗ.
B1: УТВЕРЖДАЮ | D1: СОГЛАСОВАНО
B2: Директор ООО ТПП " Сириус-Н" | D2: Директор МБОУ СОШ № _____
B4: _______________И.Ю.Лебедева | D4: ____________/______________
B5: _____________2026г. | D5: ____________2026г.
B6: Пимерное десятидневное меню завтраков для обучающихся, с ограниченными возможностями здоровья и инвалидов детства 1-11 классов
B8: 1 неделя понедельник
B9: № рецептур | C9: Прием пищи, наименование блюда | D9: Масса порц | E9: Энергет. ценн. | F9: Пищевые вещества (г)
F10: Б | G10: Ж | H10: У
C11: ЗАВТРАК
B12: 181/11 | C12: Каша молочная ( манная, рисовая или пшенная) с маслом сл. | D12: 200 | E12: 167.90 | F12: 4.72 | G12: 6.97 | H12: 21.32
B13: 14/11 | C13: Масло сливочное | D13: 10 | E13: 66.00 | F13: 0.10 | G13: 4.20 | H13: 0.13
B14: 376/11 | C14: Чай с сахаром | D14: 200 | E14: 40.00 | F14: 0.53 | G14: 0.02 | H14: 9.47
B15: ПР | C15: Хлеб пшеничный йодированный | D15: 45 | E15: 84.00 | F15: 3.70 | G15: 0.60 | H15: 16.00
B16: ПР | C16: Хлеб ржано-пшеничный | D16: 25 | E16: 51.20 | F16: 1.76 | G16: 0.32 | H16: 10.40
B17: ПР | C17: Кондитерские изделия | D17: 20 | E17: 62.90 | F17: 1.70 | G17: 6.80 | H17: 13.40
C18: Итого завтрак | D18: =SUM(D12:D17) -> 500 | E18: =SUM(E12:E17) -> 472.00 | F18: =SUM(F12:F17) -> 12.51 | G18: =SUM(G12:G17) -> 18.91 | H18: =SUM(H12:H17) -> 70.72
B19: 1 неделя вторник
B20: № рецептур | C20: Прием пищи, наименование блюда | D20: Масса | E20: Энергет. ценн. | F20: Пищевые вещества (г)
D21: порц | F21: Б | G21: Ж | H21: У
C22: ЗАВТРАК
B23: 234, 229/11 | C23: Котлета рыбная (п/ф) или рыба тушенная в томате с овощами (50/40) | D23: 90 | E23: 147.68 | F23: 12.80 | G23: 8.38 | H23: 6.50
B24: 171, 302/11 | C24: Каша рассыпчатая (пшенная, пшеничная, ячневая или перловая) | D24: 150 | E24: 217.00 | F24: =5.67+0.02 -> 5.69 | G24: =5.42+1.5 -> 6.92 | H24: 34.00
B25: 55/15 | C25: Салат из свеклы с огурцами солеными | D25: 60 | E25: 45.00 | F25: 1.20 | G25: 2.50 | H25: 4.30
B26: 377/11 | C26: Чай с лимоном | D26: 200 | E26: 41.60 | F26: 0.60 | G26: 0.03 | H26: 9.87
B27: ПР | C27: Хлеб пшеничный йодированный | D27: 40 | E27: 75.00 | F27: 3.20 | G27: 0.50 | H27: 14.30
B28: ПР | C28: Хлеб ржано-пшеничный | D28: 35 | E28: 70.00 | F28: 2.40 | G28: 0.40 | H28: 14.00
C29: Итого завтрак | D29: =SUM(D23:D28) -> 575 | E29: =SUM(E23:E28) -> 596.28 | F29: =SUM(F23:F28) -> 25.89 | G29: =SUM(G23:G28) -> 18.73 | H29: =SUM(H23:H28) -> 82.97
B30: 1 неделя среда
B31: № рецептур | C31: Прием пищи, наименование блюда | D31: Масса | E31: Энергет. ценн. | F31: Пищевые вещества (г)
D32: порц | F32: Б | G32: Ж | H32: У
C33: ЗАВТРАК
B34: 291/11 | C34: Плов из птицы | D34: 200 | E34: 305.00 | F34: 13.95 | G34: 12.47 | H34: 35.73
B35: 349/11 | C35: Компот из смеси сухофруктов | D35: 200 | E35: 168.34 | F35: 1.16 | G35: 0.30 | H35: 47.26
B36: ПР | C36: Икра кабачковая | D36: 60 | E36: 57.00 | F36: 1.06 | G36: 2.20 | H36: 4.20
B37: ПР | C37: Хлеб пшеничный йодированный | D37: 45 | E37: 84.00 | F37: 3.70 | G37: 0.60 | H37: 16.00
B38: ПР | C38: Хлеб ржано-пшеничный | D38: 35 | E38: 70.00 | F38: 2.40 | G38: 0.40 | H38: 14.00
C39: Итого завтрак | D39: =SUM(D34:D38) -> 540 | E39: =SUM(E34:E38) -> 684.34 | F39: =SUM(F34:F38) -> 22.27 | G39: =SUM(G34:G38) -> 15.97 | H39: =SUM(H34:H38) -> 117.19
C40: 1 неделя четверг
B41: № рецептур | C41: Прием пищи, наименование блюда | D41: Масса | E41: Энергет. ценн. | F41: Пищевые вещества (г)
D42: порц | F42: Б | G42: Ж | H42: У
C43: ЗАВТРАК
B44: 181/11 | C44: Каша молочная ( манная, рисовая или пшенная) с маслом сл. | D44: 200 | E44: 167.90 | F44: 4.72 | G44: 6.97 | H44: 21.32
B45: 376/11 | C45: Чай с сахаром | D45: 200 | E45: 40.00 | F45: 0.53 | G45: 0.02 | H45: 9.47
B46: ПР | C46: Хлеб пшеничный йодированный | D46: 40 | E46: 75.00 | F46: 3.20 | G46: 0.50 | H46: 14.30
B47: ПР | C47: Хлеб ржано-пшеничный | D47: 25 | E47: 51.20 | F47: 1.76 | G47: 0.32 | H47: 10.40
B48: 338/11 | C48: Фрукты свежие | D48: 100 | E48: 66.60 | F48: 0.60 | G48: 0.78 | H48: 11.74
C49: Итого завтрак | D49: =SUM(D44:D47)+100 -> 565 | E49: =SUM(E44:E48) -> 400.70 | F49: =SUM(F44:F48) -> 10.81 | G49: =SUM(G44:G48) -> 8.59 | H49: =SUM(H44:H48) -> 67.23
C50: 1 неделя пятница
B51: № рецептур | C51: Прием пищи, наименование блюда | D51: Масса | E51: Энергет. ценн. | F51: Пищевые вещества (г)
D52: порц | F52: Б | G52: Ж | H52: У
C53: ЗАВТРАК
B54: 290/11 | C54: Птица, тушенная в соусе (50/40) | D54: 90 | E54: 160.00 | F54: 11.50 | G54: 13.26 | H54: 3.51
B55: 202,309/11 | C55: Макаронные изделия отварные | D55: 150 | E55: =192.21+13.2 -> 205.41 | F55: =5.51+0.02 -> 5.53 | G55: =4.52+1.5 -> 6.02 | H55: =35.99+0.03 -> 36.02
B56: 349/11 | C56: Компот из смеси сухофруктов | D56: 200 | E56: 168.34 | F56: 1.16 | G56: 0.30 | H56: 47.26
B57: Таб.32/13 | C57: Свекла отварная с маслом растительным | D57: 60 | E57: 46.90 | F57: 0.72 | G57: 0.40 | H57: 1.56
B58: ПР | C58: Хлеб пшеничный йодир. | D58: 20 | E58: 38.00 | F58: 1.60 | G58: 0.30 | H58: 7.00
B59: ПР | C59: Хлеб ржано-пшеничный | D59: 22 | E59: 44.00 | F59: 1.50 | G59: 0.32 | H59: 9.00
C60: Итого за обед | D60: =SUM(D53:D59) -> 542 | E60: =SUM(E53:E59) -> 662.65 | F60: =SUM(F53:F59) -> 22.01 | G60: =SUM(G53:G59) -> 20.60 | H60: =SUM(H53:H59) -> 104.35
C61: 2 неделя понедельник
B62: № рецептур | C62: Прием пищи, наименование блюда | D62: Масса | E62: Энергет. ценн. | F62: Пищевые вещества (г)
D63: порц | F63: Б | G63: Ж | H63: У
C64: ЗАВТРАК
B65: 181/11 | C65: Каша молочная ( манная, рисовая или пшенная) с маслом сл. | D65: 200 | E65: 167.90 | F65: 4.72 | G65: 6.97 | H65: 21.32
B66: 14/11 | C66: Масло сливочное | D66: 10 | E66: 66.00 | F66: 0.10 | G66: 4.20 | H66: 0.13
B67: 376/11 | C67: Чай с сахаром | D67: 200 | E67: 40.00 | F67: 0.53 | G67: 0.02 | H67: 9.47
B68: ПР | C68: Хлеб пшеничный йодированный | D68: 45 | E68: 84.00 | F68: 3.70 | G68: 0.60 | H68: 16.00
B69: ПР | C69: Хлеб ржано-пшеничный | D69: 25 | E69: 51.20 | F69: 1.76 | G69: 0.32 | H69: 10.40
B70: ПР | C70: Кондитерские изделия | D70: 20 | E70: 62.90 | F70: 1.70 | G70: 6.80 | H70: 13.40
C71: Итого завтрак | D71: =SUM(D65:D70) -> 500 | E71: =SUM(E65:E70) -> 472.00 | F71: =SUM(F65:F70) -> 12.51 | G71: =SUM(G65:G70) -> 18.91 | H71: =SUM(H65:H70) -> 70.72
B72: 2 неделя вторник.
B73: № рецептур | C73: Прием пищи, наименование блюда | D73: Масса | E73: Энергет. ценн. | F73: Пищевые вещества (г)
D74: порц | F74: Б | G74: Ж | H74: У
C75: ЗАВТРАК
B76: 234, 229/11 | C76: Котлета рыбная (п/ф) или рыба тушенная в томате с овощами (50/40) | D76: 90 | E76: 147.68 | F76: 12.80 | G76: 8.38 | H76: 6.50
B77: 171, 302/11 | C77: Каша рассыпчатая (пшенная, пшеничная, ячневая или перловая) | D77: 150 | E77: 217.00 | F77: =5.67+0.02 -> 5.69 | G77: =5.42+1.5 -> 6.92 | H77: 34.00
B78: 55/15 | C78: Салат из свеклы с огурцами солеными | D78: 60 | E78: 45.00 | F78: 1.20 | G78: 2.50 | H78: 4.30
B79: 377/11 | C79: Чай с лимоном | D79: 200 | E79: 41.60 | F79: 0.60 | G79: 0.03 | H79: 9.87
B80: ПР | C80: Хлеб пшеничный йодированный | D80: 40 | E80: 75.00 | F80: 3.20 | G80: 0.50 | H80: 14.30
B81: ПР | C81: Хлеб ржано-пшеничный | D81: 35 | E81: 70.00 | F81: 2.40 | G81: 0.40 | H81: 14.00
C82: Итого завтрак | D82: =SUM(D76:D81) -> 575 | E82: =SUM(E76:E81) -> 596.28 | F82: =SUM(F76:F81) -> 25.89 | G82: =SUM(G76:G81) -> 18.73 | H82: =SUM(H76:H81) -> 82.97
B83: 2 неделя среда
B84: № рецептур | C84: Прием пищи, наименование блюда | D84: Масса | E84: Энергет. ценн. | F84: Пищевые вещества (г)
D85: порц | F85: Б | G85: Ж | H85: У
C86: ЗАВТРАК
B87: 120/11 | C87: Суп молочный с макаронными изделиями | D87: 200 | E87: 201.00 | F87: 9.38 | G87: 11.00 | H87: 19.76
B88: 376/11 | C88: Чай с сахаром | D88: 200 | E88: 40.00 | F88: 0.53 | G88: 0.02 | H88: 9.47
B89: ПР | C89: Хлеб пшеничный йодированный | D89: 40 | E89: 75.00 | F89: 3.20 | G89: 0.50 | H89: 14.30
B90: ПР | C90: Хлеб ржано-пшеничный | D90: 25 | E90: 51.20 | F90: 1.76 | G90: 0.32 | H90: 10.40
B91: 338/11 | C91: Фрукты свежие | D91: 100 | E91: 66.60 | F91: 0.60 | G91: 0.78 | H91: 11.74
C92: Итого завтрак | D92: =SUM(D87:D90)+100 -> 565 | E92: =SUM(E87:E91) -> 433.80 | F92: =SUM(F87:F91) -> 15.47 | G92: =SUM(G87:G91) -> 12.62 | H92: =SUM(H87:H91) -> 65.67
B93: 2 неделя четверг
B94: № рецептур | C94: Прием пищи, наименование блюда | D94: Масса | E94: Энергет. ценн. | F94: Пищевые вещества (г)
D95: порц | F95: Б | G95: Ж | H95: У
C96: ЗАВТРАК
B97: 295/11 | C97: Кнели из кур с соусом (50/40) | D97: 90 | E97: 168.70 | F97: 8.80 | G97: 8.64 | H97: 6.50
B98: ГП | C98: Икра кабачковая | D98: 60 | E98: 57.00 | F98: 1.06 | G98: 2.20 | H98: 4.20
B99: 202,309/11 | C99: Макаронные изд.отварные | D99: 150 | E99: =192.21+13.2 -> 205.41 | F99: =5.51+0.02 -> 5.53 | G99: =4.52+1.5 -> 6.02 | H99: =35.99+0.03 -> 36.02
B100: 349/11 | C100: Компот из смеси сухофруктов | D100: 200 | E100: 168.34 | F100: 1.16 | G100: 0.30 | H100: 47.26
B101: ПР | C101: Хлеб пшеничный йодированный | D101: 30 | E101: 70.14 | F101: 2.37 | G101: 0.30 | H101: 14.48
B102: ПР | C102: Хлеб ржано-пшеничный | D102: 25 | E102: 51.20 | F102: 1.76 | G102: 0.32 | H102: 10.40
C103: Итого завтрак | D103: =SUM(D97:D102) -> 555 | E103: =SUM(E97:E102) -> 720.79 | F103: 19.70 | G103: 18.20 | H103: 101.75
B104: 2 неделя пятница
B105: № рецептур | C105: Прием пищи, наименование блюда | D105: Масса | E105: Энергет. ценн. | F105: Пищевые вещества (г)
D106: порц | F106: Б | G106: Ж | H106: У
C107: ЗАВТРАК
B108: 289/11 | C108: Рагу из птицы | D108: 200 | E108: 302.00 | F108: 15.97 | G108: 19.11 | H108: 28.57
B109: 45,47/11 | C109: Салат из свежей или квашеной капусты | D109: 60 | E109: 64.00 | F109: 1.02 | G109: 2.00 | H109: 15.07
B110: 377/11 | C110: Чай с лимоном | D110: 200 | E110: 41.60 | F110: 0.60 | G110: 0.03 | H110: 9.87
B111: ПР | C111: Хлеб пшеничный йодированный | D111: 45 | E111: 84.00 | F111: 3.70 | G111: 0.60 | H111: 16.00
B112: ПР | C112: Хлеб ржано-пшеничный | D112: 38 | E112: 77.00 | F112: 2.60 | G112: 0.50 | H112: 15.00
C113: Итого завтрак | D113: =SUM(D108:D112) -> 543 | E113: =SUM(E108:E112) -> 569 | F113: =SUM(F108:F112) -> 23.89 | G113: =SUM(G108:G112) -> 22.24 | H113: =SUM(H108:H112) -> 84.51
B114: Условные обозначения: ПР - продовольственный продукт
C115: Меню составлено согласно:
B117: -СанПиН 2.3/2.4.3590-20 «Санитарно-эпидемиологические требования к организации общественного питания населения»
B118: -Сборника рецептур на продукцию для обучающихся во всех общеобразовательных учреждениях 2011г. под ред. Могильный М.П.,Тутельян В.А.
B119: Сборника рецептур блюд и кулинарных изделий для обучающихся образовательных организаций 2016г. под редакцией В.Р.Кучма
B120: -Сборника рецептур блюд и кулинарных изделий для предриятий общественного питания 2013г. под редакцией Здобнов А.И., Цыганенко В.А.
B121: -Методические рекомендации МР 2.4 0179-20 "Рекомендации по организации питания обучающихся общеобразовательных организаций" Утверждены Главным государственным санитарным врачом РФ А.Ю.Поповой 18 мая 2020г.

Sheet Меню ОбедОВЗ.
B1: УТВЕРЖДАЮ | D1: СОГЛАСОВАНО
B2: Директор ООО ТПП "Сириус-Н" | D2: Директор МБОУ СОШ № _____
B4: _______________И.Ю.Лебедева | D4: ____________/______________
B5: _____________2026г. | D5: ____________2026г.
B6: Пимерное десятидневное меню обедов для обучающихся, с ограниченными возможностями здоровья и инвалидов детства 1-11 классов
C8: 1 неделя понедельник
B9: № рецептур | C9: Прием пищи, наименование блюда | D9: Масса | E9: Энергет. ценн. | F9: Пищевые вещества (г)
D10: порц | F10: Б | G10: Ж | H10: У
C11: ОБЕД
B12: 102/11 | C12: Суп картофельный с горохом | D12: 200 | E12: 138.60 | F12: 7.39 | G12: 8.22 | H12: 19.23
B13: 234/11 | C13: Котлета или биточек рыбные с тушенными овощами в томате | D13: 90 | E13: 147.68 | F13: 12.80 | G13: 8.38 | H13: 6.50
B14: 171, 302/11 | C14: Каша рассыпчатая (пшенная, ячневая, перловая или пшеничная) | D14: 150 | E14: 223.31 | F14: =5.67+0.02 -> 5.69 | G14: =5.42+1.5 -> 6.92 | H14: =36.67+0.03 -> 36.70
B15: 70,71/11 | C15: Овощи соленые/свежие | D15: 60 | E15: 6.00 | F15: 0.50 | G15: 0.10 | H15: 1.00
B16: 375,376/11 | C16: Чай с сахаром | D16: 180 | E16: 36.00 | F16: 0.48 | G16: 0.02 | H16: 8.52
B17: ПР | C17: Хлеб пшеничный йодированный | D17: 30 | E17: 70.14 | F17: 2.37 | G17: 0.30 | H17: 14.48
B18: ПР | C18: Хлеб ржано-пшеничный | D18: 24 | E18: 48.00 | F18: 1.60 | G18: 0.30 | H18: 10.00
C19: Итого за обед | D19: =SUM(D12:D18) -> 734 | E19: =SUM(E12:E18) -> 669.73 | F19: =SUM(F12:F18) -> 30.83 | G19: =SUM(G12:G18) -> 24.24 | H19: =SUM(H12:H18) -> 96.43
C20: 1 неделя вторник
B21: № рецептур | C21: Прием пищи, наименование блюда | D21: Масса | E21: Энергет. ценн. | F21: Пищевые вещества (г)
D22: порц | F22: Б | G22: Ж | H22: У
C23: ОБЕД
B24: 82/11 | C24: Борщ из св. капус с карт. | D24: 200 | E24: 132.00 | F24: 1.61 | G24: 7.39 | H24: 14.00
B25: 279/11 | C25: Тефтели 2-й вариант (п/ф) с соусом 759/13 или кнели из кур, бройлер-цыплят | D25: 90 | E25: 274.10 | F25: 7.46 | G25: 9.49 | H25: 10.70
B26: 171, 302/11 | C26: Каша рассыпчатая (пшенная, ячневая, перловая или пшеничная) | D26: 150 | E26: 223.31 | F26: =5.67+0.02 -> 5.69 | G26: =5.42+1.5 -> 6.92 | H26: =36.67+0.03 -> 36.70
B27: 45,47/11 | C27: Салат из свежей или квашеной капусты | D27: 60 | E27: 64.00 | F27: 1.02 | G27: 3.00 | H27: 15.07
B28: 375,377/11 | C28: Чай с лимоном | D28: 180 | E28: 36.00 | F28: 0.48 | G28: 0.02 | H28: 8.52
B29: ПР | C29: Хлеб пшеничный йодированный | D29: 40 | E29: 75.00 | F29: 3.20 | G29: 0.50 | H29: 14.30
B30: ПР | C30: Хлеб ржано-пшеничный | D30: 14 | E30: 28.00 | F30: 0.90 | G30: 0.16 | H30: 5.60
C31: Итого за обед | D31: =SUM(D24:D30) -> 734 | E31: =SUM(E24:E30) -> 832.41 | F31: =SUM(F24:F30) -> 20.36 | G31: =SUM(G24:G30) -> 27.48 | H31: =SUM(H24:H30) -> 104.89
C32: 1 неделя среда
B33: № рецептур | C33: Прием пищи, наименование блюда | D33: Масса | E33: Энергет. ценн. | F33: Пищевые вещества (г)
D34: порц | F34: Б | G34: Ж | H34: У
C35: ОБЕД
B36: 101/11 | C36: Суп картофельный с крупой | D36: 200 | E36: 98.60 | F36: 1.60 | G36: 2.17 | H36: 9.69
B37: 290/11 | C37: Птица, тушенная в соусе | D37: 90 | E37: 160.00 | F37: 11.50 | G37: 13.26 | H37: 3.51
B38: 202,309/11 | C38: Макаронные изд.отварные | D38: 150 | E38: =192.21+13.2 -> 205.41 | F38: =5.51+0.02 -> 5.53 | G38: =4.52+1.5 -> 6.02 | H38: =35.99+0.03 -> 36.02
B39: Таб.32/13 | C39: Свекла отварная с растительным маслом | D39: 60 | E39: 11.70 | F39: 0.72 | G39: 0.40 | H39: 1.56
B40: 375,376/11 | C40: Чай с сахаром | D40: 180 | E40: 36.00 | F40: 0.48 | G40: 0.02 | H40: 8.52
B41: ПР | C41: Хлеб пшеничный йодир. | D41: 18 | E41: 34.00 | F41: 1.20 | G41: 0.50 | H41: 6.40
B42: ПР | C42: Хлеб ржано-пшеничный | D42: 11 | E42: 22.00 | F42: 0.70 | G42: 0.10 | H42: 4.40
C43: Итого за обед | D43: =SUM(D36:D42) -> 709 | E43: =SUM(E36:E42) -> 567.71 | F43: =SUM(F36:F42) -> 21.73 | G43: =SUM(G36:G42) -> 22.47 | H43: =SUM(H36:H42) -> 70.10
C44: 1 неделя четверг
B45: № рецептур | C45: Прием пищи, наименование блюда | D45: Масса | E45: Энергет. ценн. | F45: Пищевые вещества (г)
D46: порц | F46: Б | G46: Ж | H46: У
C47: ОБЕД
B48: 102/11 | C48: Суп картофельный с горохом | D48: 200 | E48: 138.60 | F48: 7.39 | G48: 8.22 | H48: 19.23
B49: 291/11 | C49: Плов из птицы | D49: 200 | E49: 305.00 | F49: 13.95 | G49: 12.47 | H49: 35.73
B50: 70,71/11 | C50: Овощи соленые/свежие | D50: 60 | E50: 6.00 | F50: 0.50 | G50: 0.10 | H50: 1.00
B51: 375,376/11 | C51: Компот из с/ф | D51: 180 | E51: 40.00 | F51: 0.53 | G51: 0.02 | H51: 9.47
B52: ПР | C52: Хлеб пшеничный йодированный | D52: 40 | E52: 75.00 | F52: 3.20 | G52: 0.50 | H52: 14.30
B53: ПР | C53: Хлеб ржано-пшеничный | D53: 16 | E53: 32.00 | F53: 1.10 | G53: 0.20 | H53: 6.20
C54: Итого за обед | D54: =SUM(D48:D53) -> 696 | E54: =SUM(E48:E53) -> 596.60 | F54: =SUM(F48:F53) -> 26.67 | G54: =SUM(G48:G53) -> 21.51 | H54: =SUM(H48:H53) -> 85.93
C55: 1 неделя пятница
B56: № рецептур | C56: Прием пищи, наименование блюда | D56: Масса | E56: Энергет. ценн. | F56: Пищевые вещества (г)
D57: порц | F57: Б | G57: Ж | H57: У
C58: ОБЕД
B59: 103/11 | C59: Суп картофельный с макарон. изд | D59: 200 | E59: 94.60 | F59: 4.95 | G59: 6.27 | H59: 23.95
B60: 279/ 300/11 | C60: Тефтели 2-й вариант (п/ф) с соусом 759/13 | D60: 90 | E60: 142.00 | F60: 7.46 | G60: 9.49 | H60: 10.70
B61: 171, 302/11 | C61: Каша рассыпчатая (пшенная, ячневая, перловая или пшеничная) | D61: 150 | E61: 223.31 | F61: =5.67+0.02 -> 5.69 | G61: =5.42+1.5 -> 6.92 | H61: =36.67+0.03 -> 36.70
B62: 45,47/11 | C62: Салат из свежей или квашеной капусты | D62: 60 | E62: 64.00 | F62: 1.02 | G62: 3.00 | H62: 15.07
B63: 375,376/11 | C63: Чай с лимоном | D63: 180 | E63: 36.00 | F63: 0.48 | G63: 0.02 | H63: 8.52
B64: ПР | C64: Хлеб пшеничный йодированный | D64: 45 | E64: 84.00 | F64: 3.70 | G64: 0.60 | H64: 16.00
B65: ПР | C65: Хлеб ржано-пшеничный | D65: 36 | E65: 72.00 | F65: 2.40 | G65: 0.40 | H65: 14.00
C66: Итого за обед | D66: =SUM(D59:D65) -> 761 | E66: =SUM(E59:E65) -> 715.91 | F66: =SUM(F59:F65) -> 25.70 | G66: =SUM(G59:G65) -> 26.70 | H66: =SUM(H59:H65) -> 124.94
C67: 2 неделя понедельник
B68: № рецептур | C68: Прием пищи, наименование блюда | D68: Масса | E68: Энергет. ценн. | F68: Пищевые вещества (г)
D69: порц | F69: Б | G69: Ж | H69: У
C70: ОБЕД
B71: 101/11 | C71: Суп картофельный с крупой | D71: 200 | E71: 98.60 | F71: 1.60 | G71: 2.17 | H71: 9.69
B72: 234/11 | C72: Котлета или биточек рыбные с тушенными овощами в томате | D72: 90 | E72: 147.68 | F72: 12.80 | G72: 8.38 | H72: 6.50
B73: 171, 302/11 | C73: Каша рассыпчатая (пшенная, ячневая, перловая или пшеничная) | D73: 150 | E73: 223.31 | F73: =5.67+0.02 -> 5.69 | G73: =5.42+1.5 -> 6.92 | H73: =36.67+0.03 -> 36.70
B74: 70,71/11 | C74: Овощи соленые/свежие | D74: 60 | E74: 6.00 | F74: 0.50 | G74: 0.10 | H74: 1.00
B75: 375,376/11 | C75: Чай с лимоном | D75: 180 | E75: 36.00 | F75: 0.48 | G75: 0.02 | H75: 8.52
B76: ПР | C76: Хлеб пшеничный йодированный | D76: 40 | E76: 75.00 | F76: 3.20 | G76: 0.50 | H76: 14.30
B77: ПР | C77: Хлеб ржано-пшеничный | D77: 31 | E77: 62.00 | F77: 2.10 | G77: 0.40 | H77: 12.50
C78: Итого за обед | D78: =SUM(D71:D77) -> 751 | E78: =SUM(E71:E77) -> 648.59 | F78: =SUM(F71:F77) -> 26.37 | G78: =SUM(G71:G77) -> 18.49 | H78: =SUM(H71:H77) -> 89.21
C79: 2 неделя вторник
B80: № рецептур | C80: Прием пищи, наименование блюда | D80: Масса | E80: Энергет. ценн. | F80: Пищевые вещества (г)
D81: порц | F81: Б | G81: Ж | H81: У
C82: ОБЕД
B83: 103/11 | C83: Суп картофельный с макарон. изд | D83: 200 | E83: 94.60 | F83: 4.95 | G83: 6.27 | H83: 23.95
B84: 279/ 300/11 | C84: Тефтели 2-й вариант (п/ф) с соусом 759/13 | D84: 90 | E84: 142.00 | F84: 7.46 | G84: 9.49 | H84: 10.70
B85: 202,309/11 | C85: Макаронные изд.отварные | D85: 150 | E85: =192.21+13.2 -> 205.41 | F85: =5.51+0.02 -> 5.53 | G85: =4.52+1.5 -> 6.02 | H85: =35.99+0.03 -> 36.02
B86: Таб.32/13 | C86: Свекла отварная с растительным маслом | D86: 60 | E86: 11.70 | F86: 0.72 | G86: 0.40 | H86: 1.56
B87: 375,376/11 | C87: Чай с сахаром | D87: 180 | E87: 36.00 | F87: 0.48 | G87: 0.02 | H87: 8.52
B88: ПР | C88: Хлеб пшеничный йодир. | D88: 27 | E88: 51.00 | F88: 2.20 | G88: 0.45 | H88: 9.60
B89: ПР | C89: Хлеб ржано-пшеничный | D89: 10 | E89: 20.00 | F89: 0.70 | G89: 0.10 | H89: 4.00
C90: Итого за обед | D90: =SUM(D83:D89) -> 717 | E90: =SUM(E83:E89) -> 560.71 | F90: =SUM(F83:F89) -> 22.04 | G90: =SUM(G83:G89) -> 22.75 | H90: =SUM(H83:H89) -> 94.35
C91: 2 неделя среда
B92: № рецептур | C92: Прием пищи, наименование блюда | D92: Масса | E92: Энергет. ценн. | F92: Пищевые вещества (г)
D93: порц | F93: Б | G93: Ж | H93: У
C94: ОБЕД
B95: 102/11 | C95: Суп картофельный с горохом | D95: 200 | E95: 138.60 | F95: 7.39 | G95: 8.22 | H95: 19.23
B96: 290/11 | C96: Птица, тушенная в соусе | D96: 90 | E96: 160.00 | F96: 11.50 | G96: 13.26 | H96: 3.51
B97: 171, 302/11 | C97: Каша рассыпчатая (пшенная, ячневая, перловая или пшеничная) | D97: 150 | E97: 223.31 | F97: =5.67+0.02 -> 5.69 | G97: =5.42+1.5 -> 6.92 | H97: =36.67+0.03 -> 36.70
B98: 45,47/11 | C98: Салат из свежей или кваш капусты | D98: 60 | E98: 64.00 | F98: 1.02 | G98: 3.00 | H98: 15.07
B99: 375,376/11 | C99: Чай с сахаром | D99: 180 | E99: 36.00 | F99: 0.48 | G99: 0.02 | H99: 8.52
B100: ПР | C100: Хлеб пшеничный йодированный | D100: 45 | E100: 84.00 | F100: 3.70 | G100: 0.60 | H100: 16.00
B101: ПР | C101: Хлеб ржано-пшеничный | D101: 23 | E101: 46.00 | F101: 1.50 | G101: 0.30 | H101: 9.30
C102: Итого за обед | D102: =SUM(D95:D101) -> 748 | E102: =SUM(E95:E101) -> 751.91 | F102: 31.28 | G102: 32.32 | H102: 108.33
C103: 2 неделя четверг
B104: № рецептур | C104: Прием пищи, наименование блюда | D104: Масса | E104: Энергет. ценн. | F104: Пищевые вещества (г)
D105: порц | F105: Б | G105: Ж | H105: У
C106: ОБЕД
B107: 101/11 | C107: Суп картофельный с крупой | D107: 200 | E107: 98.60 | F107: 1.60 | G107: 2.17 | H107: 9.69
B108: 279/ 300/11 | C108: Тефтели 2-й вариант (п/ф) с соусом 759/13 | D108: 90 | E108: 142.00 | F108: 7.46 | G108: 9.49 | H108: 10.70
B109: 171, 302/11 | C109: Каша рассыпчатая (пшенная, ячневая, перловая или пшеничная) | D109: 150 | E109: 223.31 | F109: =5.67+0.02 -> 5.69 | G109: =5.42+1.5 -> 6.92 | H109: =36.67+0.03 -> 36.70
B110: 70,71/11 | C110: Овощи соленые/свежие | D110: 60 | E110: 6.00 | F110: 0.50 | G110: 0.10 | H110: 1.00
B111: 375,376/11 | C111: Компот из с/ф | D111: 180 | E111: 40.00 | F111: 0.53 | G111: 0.02 | H111: 9.47
B112: ПР | C112: Хлеб пшеничный йодированный | D112: 40 | E112: 75.00 | F112: 3.20 | G112: 0.50 | H112: 14.30
B113: ПР | C113: Хлеб ржано-пшеничный | D113: 26 | E113: 52.00 | F113: 1.80 | G113: 0.30 | H113: 10.00
C114: Итого за обед | D114: =SUM(D107:D113) -> 746 | E114: =SUM(E107:E113) -> 636.91 | F114: =SUM(F107:F113) -> 20.78 | G114: =SUM(G107:G113) -> 19.50 | H114: =SUM(H107:H113) -> 91.86
C115: 2 неделя пятница
B116: № рецептур | C116: Прием пищи, наименование блюда | D116: Масса | E116: Энергет. ценн. | F116: Пищевые вещества (г)
D117: порц | F117: Б | G117: Ж | H117: У
C118: ОБЕД
B119: 82/11 | C119: Борщ из св. капус с карт. | D119: 200 | E119: 132.00 | F119: 1.61 | G119: 7.39 | H119: 14.00
B120: 291/11 | C120: Плов из птицы | D120: 200 | E120: 305.00 | F120: 13.95 | G120: 12.47 | H120: 35.73
B121: Таб.32/13 | C121: Свекла отварная с растительным маслом | D121: 60 | E121: 11.70 | F121: 0.72 | G121: 0.40 | H121: 1.56
B122: 375,376/11 | C122: Чай с сахаром | D122: 180 | E122: 36.00 | F122: 0.48 | G122: 0.02 | H122: 8.52
B123: ПР | C123: Хлеб пшеничный йодированный | D123: 45 | E123: 84.00 | F123: 3.70 | G123: 0.60 | H123: 16.00
B124: ПР | C124: Хлеб ржано-пшеничный | D124: 27 | E124: 54.00 | F124: 1.80 | G124: 0.30 | H124: 11.00
C125: Итого за обед | D125: =SUM(D119:D124) -> 712 | E125: =SUM(E119:E124) -> 622.70 | F125: =SUM(F119:F124) -> 22.26 | G125: =SUM(G119:G124) -> 21.18 | H125: =SUM(H119:H124) -> 86.81
B127: Условные обозначения: ПР продовольственный - продукт
C128: Меню составлено согласно:
B129: -СанПиН 2.3/2.4.3590-20 «Санитарно-эпидемиологические требования к организации общественного питания населения»
B130: -Сборника рецептур на продукцию для обучающихся во всех общеобразовательных учреждениях 2011г. под ред. Могильный М.П.,Тутельян В.А.
B131: Сборника рецептур блюд и кулинарных изделий для обучающихся образовательных организаций 2016г. под редакцией В.Р.Кучма
B132: -Сборника рецептур блюд и кулинарных изделий для предриятий общественного питания 2013г. под редакцией Здобнов А.И., Цыганенко В.А.
B133: -Методические рекомендации МР 2.4 0179-20 "Рекомендации по организации питания обучающихся общеобразовательных организаций" Утверждены Главным государственным санитарным врачом РФ А.Ю.Поповой 18 мая 2020г.

Sheet Меню полдники ОВЗ
B1: УТВЕРЖДАЮ | D1: СОГЛАСОВАНО
B2: Директор ООО ТПП "Сириус-Н" | D2: Директор МБОУ СОШ № _____
B4: _______________И.Ю.Лебедева | D4: ____________/______________
B5: _____________2026г. | D5: ____________2026г.
B6: Пимерное десятидневное меню полдников для обучающихся, с ограниченными возможностями здоровья и инвалидов детства 1-11 классов
C8: 1 неделя понедельник
B9: № рецептур | C9: Прием пищи, наименование блюда | D9: Масса | E9: Энергет. ценн. | F9: Пищевые вещества (г)
D10: порц | F10: Б | G10: Ж | H10: У
C11: 1 неделя понедельник
C12: ПОЛДНИК
B13: 385/11 | C13: Молоко кипяченое | D13: 200 | E13: 107.00 | F13: 5.80 | G13: 5.00 | H13: 9.60
B14: ПР | C14: Хлебобулочное изделие (пирожок с картофелем печеный ) | D14: 100 | E14: 280.90 | F14: 7.20 | G14: 10.50 | H14: 39.40
C15: Итого за полдник | D15: =SUM(D13:D14) -> 300 | E15: 387.90 | F15: 13.00 | G15: 15.50 | H15: 49.00
C16: 1 неделя вторник
B17: № рецептур | C17: Прием пищи, наименование блюда | D17: Масса | E17: Энергет. ценн. | F17: Пищевые вещества (г)
D18: порц | F18: Б | G18: Ж | H18: У
C19: ПОЛДНИК
B20: 377/11 | C20: Чай с лимоном | D20: 200 | E20: 41.60 | F20: 0.60 | G20: 0.03 | H20: 9.87
B21: 338/11 | C21: Фрукты свежие | D21: 100 | E21: 66.60 | F21: 0.60 | G21: 0.78 | H21: 11.74
C22: Итого за полдник | D22: =SUM(D20:D21) -> 300 | E22: 108.20 | F22: 1.20 | G22: 0.81 | H22: 21.61
C23: 1 неделя среда
B24: № рецептур | C24: Прием пищи, наименование блюда | D24: Масса | E24: Энергет. ценн. | F24: Пищевые вещества (г)
D25: порц | F25: Б | G25: Ж | H25: У
C26: ПОЛДНИК
B27: 349/11 | C27: Компот из смеси сухофруктов | D27: 200 | E27: 168.34 | F27: 1.16 | G27: 0.30 | H27: 47.26
B28: 338/11 | C28: Фрукты свежие | D28: 100 | E28: 66.60 | F28: 0.60 | G28: 0.78 | H28: 11.74
C29: Итого за полдник | D29: =SUM(D27:D28) -> 300 | E29: =SUM(E27:E28) -> 234.94 | F29: =SUM(F27:F28) -> 1.76 | G29: =SUM(G27:G28) -> 1.08 | H29: =SUM(H27:H28) -> 59.00
C30: 1 неделя четверг
B31: № рецептур | C31: Прием пищи, наименование блюда | D31: Масса | E31: Энергет. ценн. | F31: Пищевые вещества (г)
D32: порц | F32: Б | G32: Ж | H32: У
C33: ПОЛДНИК
B34: 375,376/11 | C34: Чай с сахаром | D34: 200 | E34: 40.00 | F34: 0.53 | G34: 0.02 | H34: 9.47
B35: ПР | C35: Хлебобулочное изделие (булочка ) | D35: 100 | E35: 312 | F35: 11.25 | G35: 10.50 | H35: 56.90
C36: Итого за полдник | D36: =SUM(D34:D35) -> 300 | E36: 352.00 | F36: 11.78 | G36: 10.52 | H36: 66.37
C37: 1 неделя пятница
B38: № рецептур | C38: Прием пищи, наименование блюда | D38: Масса | E38: Энергет. ценн. | F38: Пищевые вещества (г)
D39: порц | F39: Б | G39: Ж | H39: У
C40: ПОЛДНИК
B41: 349/11 | C41: Компот из смеси сухофруктов | D41: 200 | E41: 168.34 | F41: 1.16 | G41: 0.30 | H41: 47.26
B42: 338/11 | C42: Фрукты свежие | D42: 100 | E42: 66.60 | F42: 0.60 | G42: 0.78 | H42: 11.74
C43: Итого за полдник | D43: =SUM(D41:D42) -> 300 | E43: =SUM(E41:E42) -> 234.94 | F43: =SUM(F41:F42) -> 1.76 | G43: =SUM(G41:G42) -> 1.08 | H43: =SUM(H41:H42) -> 59.00
C44: 2 неделя понедельник
B45: № рецептур | C45: Прием пищи, наименование блюда | D45: Масса | E45: Энергет. ценн. | F45: Пищевые вещества (г)
D46: порц | F46: Б | G46: Ж | H46: У
C47: ПОЛДНИК
B48: 385/11 | C48: Молоко кипяченое | D48: 200 | E48: 107.00 | F48: 5.80 | G48: 5.00 | H48: 9.60
B49: ПР | C49: Хлебобулочное изделие ( пирожок с повидлом печеный ) | D49: 100 | E49: 294.80 | F49: 7.50 | G49: 8.40 | H49: 48.30
C50: Итого за полдник | D50: =SUM(D48:D49) -> 300 | E50: =SUM(E48:E49) -> 401.80 | F50: =SUM(F48:F49) -> 13.30 | G50: =SUM(G48:G49) -> 13.40 | H50: =SUM(H48:H49) -> 57.90
C51: 2 неделя вторник
B52: № рецептур | C52: Прием пищи, наименование блюда | D52: Масса | E52: Энергет. ценн. | F52: Пищевые вещества (г)
D53: порц | F53: Б | G53: Ж | H53: У
C54: ПОЛДНИК
B55: 377/11 | C55: Чай с лимоном | D55: 200 | E55: 41.60 | F55: 0.60 | G55: 0.03 | H55: 9.87
B56: ПР | C56: Хлебобулочное изделие ( пирожок с картофелем печеный ) | D56: 100 | E56: 280.90 | F56: 7.20 | G56: 10.50 | H56: 39.40
C57: Итого за полдник | D57: =SUM(D55:D56) -> 300 | E57: 322.50 | F57: 7.80 | G57: 10.53 | H57: 49.27
C58: 2 неделя среда
B59: № рецептур | C59: Прием пищи, наименование блюда | D59: Масса | E59: Энергет. ценн. | F59: Пищевые вещества (г)
D60: порц | F60: Б | G60: Ж | H60: У
C61: ПОЛДНИК
B62: 375,376/11 | C62: Чай с сахаром | D62: 200 | E62: 40.00 | F62: 0.53 | G62: 0.02 | H62: 9.47
B63: 338/11 | C63: Фрукты свежие | D63: 100 | E63: 66.60 | F63: 0.60 | G63: 0.78 | H63: 11.74
C64: Итого за полдник | D64: =SUM(D62:D63) -> 300 | E64: 106.60 | F64: 1.13 | G64: 0.80 | H64: 21.21
C65: 2 неделя четверг
B66: № рецептур | C66: Прием пищи, наименование блюда | D66: Масса | E66: Энергет. ценн. | F66: Пищевые вещества (г)
D67: порц | F67: Б | G67: Ж | H67: У
C68: ПОЛДНИК
B69: 385/11 | C69: Молоко кипяченое | D69: 200 | E69: 107.00 | F69: 5.80 | G69: 5.00 | H69: 9.60
B70: ПР | C70: Хлебобулочное изделие ( пирожок с повидлом печеный ) | D70: 100 | E70: 294.80 | F70: 7.50 | G70: 8.40 | H70: 48.30
C71: Итого за полдник | D71: =SUM(D69:D70) -> 300 | E71: =SUM(E69:E70) -> 401.80 | F71: =SUM(F69:F70) -> 13.30 | G71: =SUM(G69:G70) -> 13.40 | H71: =SUM(H69:H70) -> 57.90
C72: 2 неделя пятница
B73: № рецептур | C73: Прием пищи, наименование блюда | D73: Масса | E73: Энергет. ценн. | F73: Пищевые вещества (г)
D74: порц | F74: Б | G74: Ж | H74: У
C75: ПОЛДНИК
B76: 377/11 | C76: Чай с лимоном | D76: 200 | E76: 41.60 | F76: 0.60 | G76: 0.03 | H76: 9.87
B77: 338/11 | C77: Фрукты свежие | D77: 100 | E77: 66.60 | F77: 0.60 | G77: 0.78 | H77: 11.74
C78: Итого за полдник | D78: =SUM(D76:D77) -> 300 | E78: =SUM(E76:E77) -> 108.20 | F78: =SUM(F76:F77) -> 1.20 | G78: =SUM(G76:G77) -> 0.81 | H78: =SUM(H76:H77) -> 21.61
B80: Условные обозначения: ПР - продовольственный продукт
C81: Меню составлено согласно:
B82: -СанПиН 2.3/2.4.3590-20 «Санитарно-эпидемиологические требования к организации общественного питания населения»
B83: -Сборника рецептур на продукцию для обучающихся во всех общеобразовательных учреждениях 2011г. под ред. Могильный М.П.,Тутельян В.А.
B84: Сборника рецептур блюд и кулинарных изделий для обучающихся образовательных организаций 2016г. под редакцией В.Р.Кучма
B85: -Сборника рецептур блюд и кулинарных изделий для предриятий общественного питания 2013г. под редакцией Здобнов А.И., Цыганенко В.А.
B86: -Методические рекомендации МР 2.4 0179-20 "Рекомендации по организации питания обучающихся общеобразовательных организаций" Утверждены Главным государственным санитарным врачом РФ А.Ю.Поповой 18 мая 2020г.
